Cogmind - Beta 13 X1 @@@ ROGUE MODE // 2023.07.18 @ 15:07:12 Player: Minty Result: Self-destructed Performance ------------- Evolutions (1) 500 Regions Visited (2) 400 Robots Destroyed (28) 140 Value Destroyed (574) 574 Prototype IDs (0) 0 Alien Tech Used (0) 0 Bonus (58) 58 TOTAL SCORE: 1672 Bonus ------- High Alert Combat Kills 58 Cogmind --------- Core Integrity 12/400 Matter 244/300 Energy 8/100 System Corruption 0% Temperature Hot (234) Movement Core (200) Ox3 Location -9/Materials Parts ------- > --- POWER (1) -------- (None) > --- PROPULSION (2) --- (None) > --- UTILITY (4) ------ Heat Sink Small Storage Unit Structural Scanner > --- WEAPON (2) ------- Spread Laser > --- INVENTORY (8) ---- Large Matter Pod (0) Spread Laser Spread Laser Grenade Launcher Peak State ------------ > --- POWER ------------ Ion Engine > --- PROPULSION ------- Light Treads Light Treads > --- UTILITY ---------- Small Storage Unit Large Matter Pod Structural Scanner Weapon Shielding > --- WEAPON ----------- Spread Laser Spread Laser > --- INVENTORY -------- Ion Engine Heat Sink Spread Laser Spread Laser Spread Laser Light Cannon Light Cannon Grenade Launcher [Rating: 12] Favorites ----------- Power Ion Engine Engine Ion Engine Propulsion Light Treads Treads Light Treads Leg Aluminum Leg Utility Small Storage Unit Device Structural Scanner Storage Small Storage Unit Protection Weapon Shielding Weapon Spread Laser Energy Gun Spread Laser Ballistic Gun Assault Rifle Ballistic Cannon Light Cannon Launcher Grenade Launcher Build | -11 -10 -9 ------- Run | Jun Mat Mat Slots Evolved 2 | . . 2 Power . | . . . Propulsion . | . . . Utility 2 | . . 2 Weapon . | . . . Parts Attached 17 | . 4 13 Power 1 | . . 1 Engine 1 | . . 1 Core . | . . . Reactor . | . . . Propulsion 2 | . . 2 Treads 2 | . . 2 Leg . | . . . Wheel . | . . . Hover . | . . . Flight . | . . . Utility 6 | . 2 4 Device 3 | . 1 2 Storage 2 | . 1 1 Processor . | . . . Hackware . | . . . Protection 1 | . . 1 Artifact . | . . . Weapon 8 | . 2 6 Energy Gun 5 | . . 5 Energy Cannon . | . . . Ballistic Gun . | . . . Ballistic Cannon 1 | . 1 . Launcher 2 | . 1 1 Special Weapon . | . . . Impact Weapon . | . . . Slashing Weapon . | . . . Piercing Weapon . | . . . Special Melee Weapon . | . . . Unidentified Prototypes . | . . . Parts Lost 8 | . . 8 Power 2 | . . 2 Propulsion 2 | . . 2 Utility 2 | . . 2 Weapon 2 | . . 2 Highest Loss Streak 8 | . . 8 To Critical Strikes . | . . . Average Slot Usage (%) 96 | . 98 96 Engine 11 | . 14 10 Treads 12 | . . 19 Leg 9 | . 28 . Device 11 | . 4 15 Storage 18 | . 22 16 Protection 6 | . . 10 Energy Gun 10 | . 4 13 Ballistic Cannon 4 | . 9 2 Launcher 7 | . 11 5 Naked Turns . | . . . Heaviest Build 21 | 14 17 21 Greatest Support 40 | 20 20 40 Greatest Overweight (x) 4 | . . 4 Average Overweight (x) . | . . . Largest Inventory Capacity 8 | . 8 8 Average Capacity 8 | . 8 8 Most Carried 8 | . 8 8 Average Carried 7 | . 7 6 Final Capacity 8 | 8 8 8 Final Carried 8 | 6 8 4 Class Distribution -------------------- 100% | Mutant Dominant Class ---------------- Mutant | -10/Materials Mutant | -9/Materials Resources | -11 -10 -9 ----------- Run | Jun Mat Mat Matter Collected 366 | 200 44 122 Remotely . | . . . Salvage Created 461 | . 121 340 Parts 47 | . 16 31 Haulers Intercepted . | . . . Recyclers Shooed . | . . . Parts Field Recycled . | . . . Retrieved Matter . | . . . Parts Self-Destructed . | . . . Prevented . | . . . Kills | -11 -10 -9 ------- Run | Jun Mat Mat Combat Hostiles Destroyed 19 | . 4 15 Guns 14 | . 1 13 Cannons 1 | . 1 . AOE 4 | . 2 2 Classes Destroyed 6 | . 5 1 Worker 2 | . 1 1 Builder 5 | . 3 2 Watcher 2 | . 1 1 Swarmer 9 | . 3 6 Grunt 8 | . 1 7 Sentry 2 | . . 2 Best Kill Streak 10 | . 7 10 Combat Bots Only 9 | . 3 9 Max Kills in Single Turn 4 | . 4 2 Gunslinging . | . . . Exploded 2 | . 2 1 Melee . | . . . Uniques/NPCs Destroyed . | . . . Combat | -11 -10 -9 -------- Run | Jun Mat Mat Damage Taken 1312 | . 24 1288 Core 388 | . . 388 Absorbed by Shields . | . . . Redirected to Shielding 53 | . . 53 Core Remaining (%) 100 | 100 100 . Volleys Fired 44 | . 10 34 Largest 2 | . 2 2 Hottest 130 | . 80 130 Shots Fired 76 | . 13 63 Gun 59 | . 2 57 Cannon 8 | . 8 . Launcher 9 | . 3 6 Special . | . . . Kinetic 8 | . 8 . Thermal 59 | . 2 57 Explosive 9 | . 3 6 Electromagnetic . | . . . Robot Hit Streak 9 | . 1 9 Robot Miss Streak 11 | . 8 11 Penetration Max . | . . . Secondary Targets 6 | . . 6 Max Gunslinging Chain 1 | . . 1 Shots Hit Robots 60 | . 2 58 Core Hits 79 | . 7 72 Critical Kills . | . . . Critical Parts Destroyed . | . . . Critical Strikes 1 | . 1 . Burn 1 | . 1 . Melee Attacks . | . . . Impact . | . . . Slashing . | . . . Piercing . | . . . Sneak Attacks . | . . . Combat Hostiles . | . . . Follow-up Attacks . | . . . Damage Inflicted 1379 | . 404 975 Guns 657 | . 13 644 Cannons 35 | . 35 . Explosions 681 | . 356 325 Melee . | . . . Ramming 6 | . . 6 Kinetic 35 | . 35 . Thermal 875 | . 231 644 Explosive 463 | . 138 325 Electromagnetic . | . . . Impact . | . . . Slashing . | . . . Piercing . | . . . Highest Corruption . | . . . Average Corruption . | . . . Corruption Purged . | . . . Corruption Blocked . | . . . Overload Shots . | . . . Overflow Damage 64 | . 62 2 Projectiles . | . . . Explosions 64 | . 62 2 Melee . | . . . Knockbacks 1 | . 1 . Impact . | . . . Kinetic 1 | . 1 . Secondary . | . . . Self-Inflicted Damage 45 | . 15 30 Shots 2 | . 1 1 Rammed 5 | . . 5 Targets Rammed 5 | . . 5 Kicked . | . . . Crushed . | . . . Highest Temperature 461 | . 28 461 Average Temperature 138 | . 8 153 Received Heat Transfer 492 | . 6 486 Effects 4 | . . 4 Energy Bleed 1 | . . 1 Damage (major) 3 | . . 3 Siege Activations . | . . . Robots Corrupted . | . . . Combat Hostiles . | . . . Parts Fried . | . . . Impact Corruptions . | . . . Robots Melted . | . . . Combat Hostiles . | . . . Parts Melted 1 | . 1 . Heat Transferred 1116 | . 311 805 Parts Sabotaged . | . . . Parts Stolen . | . . . Parts Stripped . | . . . Power Chain Reactions . | . . . Missiles Intercepted . | . . . Alert | -11 -10 -9 ------- Run | Jun Mat Mat Peak Influence 545 | . 264 545 Initial 111 | . . 111 Average 211 | . 151 243 Maximum Alert Level 2 | . 1 2 Low Security (%) 53 | . 49 55 Level 1 36 | . 50 28 Level 2 10 | . . 15 Level 3 . | . . . Level 4 . | . . . Level 5 . | . . . High Security . | . . . Max Security . | . . . Squads Dispatched 4 | . 1 3 Investigation 1 | . 1 . Extermination . | . . . Reinforcement 3 | . . 3 Assault . | . . . Garrison . | . . . Intercept . | . . . Searches Triggered . | . . . Construction Impeded 1 | . . 1 Haulers Reinforced . | . . . Active Scanning Responses . | . . . Cargo Convoy Interrupts . | . . . Stealth | -11 -10 -9 --------- Run | Jun Mat Mat Distress Signals 7 | . 1 6 Communications Jammed . | . . . Distress Signals . | . . . Times Spotted 38 | . 7 31 Peak Tracking Total 12 | . 3 12 Tactical Retreats 2 | . . 2 Traps | -11 -10 -9 ------- Run | Jun Mat Mat Traps Triggered . | . . . Indirectly . | . . . Trap Hack Attempts . | . . . Triggered . | . . . Disarmed . | . . . Reprogrammed . | . . . Reused . | . . . Traps Extracted . | . . . Installed . | . . . Triggered . | . . . Machines | -11 -10 -9 ---------- Run | Jun Mat Mat Machines Disabled 5 | . 5 . Max in Single Turn 5 | . 5 . Machines Repaired . | . . . Machines Sabotaged . | . . . Overloaded Fab Kills . | . . . Hacking | -11 -10 -9 --------- Run | Jun Mat Mat Machines Accessed 2 | . 1 1 Terminals 1 | . 1 . Fabricators . | . . . Repair Stations . | . . . Recycling Units 1 | . . 1 Scanalyzers . | . . . Garrison Access . | . . . Total Hacks 7 | . 4 3 Successful 6 | . 3 3 Failed 1 | . 1 . Catastrophic . | . . . Database Lockouts . | . . . Manual 1 | . 1 . Terminals 4 | . 4 . Fabricators . | . . . Repair Stations . | . . . Recycling Units 3 | . . 3 Scanalyzers . | . . . Garrison Access . | . . . Terminal Hacks 2 | . 2 . Locate Traps 1 | . 1 . Maintenance Status 1 | . 1 . Fabricator Hacks . | . . . Repair Station Hacks . | . . . Recycling Unit Hacks 3 | . . 3 Process 1 | . . 1 Report Inventory 1 | . . 1 Retrieve Matter 1 | . . 1 Scanalyzer . | . . . Garrison Access Hacks . | . . . Unauthorized Hacks 1 | . 1 . Terminals 1 | . 1 . Botnet 1 | . 1 . Fabricators . | . . . Repair Stations . | . . . Recycling Units . | . . . Scanalyzers . | . . . Garrison Access . | . . . Data Cores Recovered . | . . . Used . | . . . Hacking Detections 2 | . 1 1 Full Trace Events 1 | . 1 . Feedback Events . | . . . Feedback Blocked . | . . . Robot Schematics Acquired . | . . . Robots Built . | . . . Authchips . | . . . Time . | . . . Total Robot Build Rating . | . . . Part Schematics Acquired . | . . . Parts Built . | . . . Authchips . | . . . Time . | . . . Total Part Build Rating . | . . . Parts Repaired . | . . . Time . | . . . Parts Recycled . | . . . Recycled Matter 13 | . . 13 Retrieved Matter 13 | . . 13 Retrieved Components . | . . . Parts Scanalyzed . | . . . Part Schematics Acquired . | . . . Parts Damaged . | . . . Bothacking | -11 -10 -9 ------------ Run | Jun Mat Mat Used RIF Installer . | . . . Robots Hacked . | . . . Non-combat . | . . . Combat . | . . . Robot Hacks Applied . | . . . Relay Couplers Released . | . . . Fabnet Peak Effective % . | . . . Robots Rewired . | . . . Allies Hacked . | . . . Hacks Repelled . | . . . Allies | -11 -10 -9 -------- Run | Jun Mat Mat Total Allies . | . . . Largest Group . | . . . Highest-Rated Group . | . . . Highest-Rated Ally . | . . . Total Orders . | . . . Ally Attacks . | . . . Total Damage . | . . . Kills . | . . . Allies Corrupted . | . . . Allies Melted . | . . . Intel | -11 -10 -9 ------- Run | Jun Mat Mat Robot Analysis Total . | . . . Derelict Logs Recovered . | . . . Drone Launches . | . . . Drone Recoveries . | . . . Exploration | -11 -10 -9 ------------- Run | Jun Mat Mat Turns Passed 597 | . 208 389 Spaces Moved 303 | 1 145 157 Core 1 | . . 1 Treads 156 | . . 156 Legs 146 | 1 145 . Wheels . | . . . Hover . | . . . Flight . | . . . Fastest Speed 120 | 120 120 160 Average Speed 141 | 120 120 160 Slowest Speed 250 | 120 120 250 Overloaded Moves . | . . . Propulsion Burnouts . | . . . Robots Hopped . | . . . Cave-ins Triggered . | . . . Exploration Rate (%) 21 | 2 41 21 Regions Visited 2 Branch Regions . Pre-discovered Areas . | . . . Known Exits Taken . | . . . Unknown Exits Taken 2 | 1 1 . Scrap Searched . | . . . Spaces Dug . | . . . Terrain Destroyed 81 | . 46 35 Melee . | . . . Projectile . | . . . AOE 81 | . 46 35 Terrain Rammed . | . . . Walls Destroyed . | . . . Machines Disabled . | . . . Actions | -11 -10 -9 --------- Run | Jun Mat Mat Total 397 | . 168 229 Wait 4 | . . 4 Move 301 | . 144 157 Hop . | . . . Pick Up 10 | . 4 6 Fast Attach 5 | . 3 2 Attach 6 | . . 6 Detach 5 | . 2 3 Swap 6 | . 1 5 Drop 11 | . 4 7 Fire 44 | . 10 34 Melee . | . . . Ram . | . . . Kick . | . . . Crush 5 | . . 5 Escape Stasis . | . . . Rewire . | . . . Trap . | . . . Miscellaneous . | . . . Route ------- -11/Junkyard -10/Materials (discovered 2 exits: *Mat x2) -9/Materials History --------- Turn | Location | Event 1 | -11/Junkyard | Discovered new exit (range 0) 1 | -11/Junkyard | Entered Materials 47 | -10/Materials | Discovered new exit (range 15) 119 | -10/Materials | Discovered new exit (range 11) 209 | -10/Materials | Entered another Materials area 209 | -9/Materials | Evolved 2 slots: Utility x2 326 | -9/Materials | Build established: Mutant 570 | -9/Materials | Core integrity fell below 50% 593 | -9/Materials | Core integrity fell below 20% 598 | -9/Materials | Self-destructed Last Messages --------------- 00569_ S-10 Pest destroyed. 00571_ M-13 Machinist repairs G-34 Mercenary. 00571_ Lgt. Treads destroyed. 00571_ G-34 Mercenary destroyed. 00574_ Critical hit (Burn: +37). 00575_ G-34 Mercenary destroyed. 00575_ Switching to secondary target: Y-45 Defender. 00577_ Weapon Shielding destroyed. 00578_ K-01 Serf collects debris. 00581_ Y-45 Defender destroyed. 00584_ K-01 Serf destroyed. 00584_ G-34 Mercenary destroyed. 00584_ K-01 Serf collects debris. 00586_ Spread Laser destroyed. 00587_ Overheating: Ion Engine damaged (-3). 00587_ Overheating: Sml. Storage Unit damaged (-36). 00587_ Overheating: Spread Laser damaged (-1). 00587_ Ion Engine destroyed. 00589_ K-01 Serf collects debris. 00597_ Spread Laser destroyed. Map ----- +----------------------------------------------------+ | ?????????????????????????????????????????????????? | | ?????????????????????????????????????????????????? | | ?????????????????????????????????????????????????? | | ?????????????????????????????????????????????????? | | ?????????????????????????????????????????????????? | | ?????????????????????????????????????????????????? | | ?????????????????????????????????????????????????? | | ?????????????????????????????????????????????????? | | ?????????????????????????????????????????????????? | | ?????????????????????????????????????????????????? | | ????????????????????????? ?????????????????????? | | ?????????????????????# ## ???????????????????? | | ?????????????????????#### ??????????????????? | | ???????????????????? ???????????????????? | | ?????????????????? ??????????????????? | | ???????????????? Y #?????????????????? | | ????????????????## ##?????????????????? | | ????????????????## ## ???????????? | | ###### ?????????## ########???????????? | | ###### ?????????## a ???????????? | | # ?????????## ??????????????? | | "" # ?????????## "" =k""" """??????????????? | | "" # ?????????## ""%[!""" """ ?""??????????? | | "" # ?????????## """%=""" """ ""??????????? | | # ?????????## g*% ????????? | | * # ### =[%=@ ????????? | | ####+############# """=b "" """ ????????????? | | # """=%""" """ ?????????????? | | # """ *""" """ """?????????? | | # = !% ??????? | | ###########+####### =%! ??????? | | ##### # """ w"" """ [[] ??????? | | ???## # """! """ """ [[]???????? | | ???## # """% """ """ ?????????????? | | ???## # = ?????????????? | | ???## # ???????????? | | ?#### # ################???????????? | | ?#######+####+##### ################???????????? | | ?## """ # #]] ###????????????????????????? | | ### "Y" # ###????????????????????????? | | ### # [ ###????????????????????????? | | ## # * ###????????????????????????? | | ######+#### ###????????????????????????? | | ###### #### ^ # ????????????????????????? | | ##?### ########### ## ????????????????????????? | | ###### ########### ## ????????????????????????? | | ##### #### ^ ##?????????????????????????? | | + ### ## ????????????????????????? | | # ### ## ????????????????????????? | | # ### # ????????????????????????? | +----------------------------------------------------+ Best States ------------- Heat Dissipation 38 Energy Generation 10 Energy Capacity 250 Matter Stores 300 Matter Capacity 450 Sight Range 16 Terrain Scan Density 10 Weapon Shielding 33 Evasion (%) 55 Recoil Reduction 2 Item Schematics ----------------- None Robot Schematics ------------------ None Fabricated ------------ Nothing Alien Tech Used ----------------- None Achievements -------------- None Challenges ------------ None Game ------ Seed HugeMetafiberArchive Manual? 0 Play Time 00:07:15 Cumulative 472.6 hours Start 2023.07.18 @ 15:02:41 End 2023.07.18 @ 15:07:12 Sessions 1 Manual Loads 0 Difficulty Rogue Special Mode None Game No. 376 Rogue 157 Adventurer 76 Explorer 143 Win Type - Total 22 Types 19/0/2/0/0/0/0/1/0 Lore% 67 Gallery% 87 Achievement% 71 Wizard Run 0 Options --------- ASCII 0 Keyboard 1 Movement Numpad Keybinds 0 Fullscreen 2 Font 18/X11Bold Map View 76x50 Tactical HUD 1 Map Filters NONE Filters NONE Steam 1 RUN: b9eb1125-7159-4438-bd06-e5040062f8dc